bitfinex/quotes_SOLUSD_20251117
["timestamp","ask_amount","ask_price","bid_price","bid_amount"]
[1763400888994,5.74996577,133.95,133.91,13.37798214]
[1763400889202,0.66,133.95,133.91,13.37798214]
[1763400889518,19.1323047,133.94,133.88,13.37798214]
[1763400889685,5.09432256,133.93,133.89,13.37798214]
[1763400889891,0.86,133.96,133.9,13.37798214]
[1763400890183,5.09365589,133.95,133.9,14.09798214]
[1763400890379,0.86,133.96,133.91,13.37798214]
[1763400890710,5.0970836,133.95,133.9,0.72]
[1763400890889,0.86,133.96,133.91,13.37798214]
[1763400891202,5.09645174,133.95,133.91,13.37798214]
[1763400891510,0.66,133.95,133.91,13.37798214]
[1763400891711,0.66,133.94,133.9,13.37798214]
[1763400892005,13.37798214,133.93,133.86,0.72]
[1763400892206,0.66,133.94,133.86,4.58]
[1763400892390,0.66,133.95,133.89,13.37798214]
[1763400892582,14.03798214,133.95,133.89,13.37798214]
[1763400892782,13.37798214,133.94,133.88,13.37798214]
[1763400893005,14.03798214,133.94,133.88,13.37798214]
[1763400893412,0.66,133.94,133.89,13.37798214]
[1763400893800,14.03798214,133.94,133.89,13.37798214]
[1763400894006,13.57798214,133.96,133.9,13.37798214]
[1763400894316,14.23798214,133.96,133.9,14.09798214]
[1763400894494,0.86,133.96,133.91,13.37798214]
[1763400895008,0.2,133.96,133.93,13.37798214]
[1763400895181,0.2,133.96,133.94,13.37798214]
[1763400896004,0.2,133.96,133.95,13.37798214]
[1763400897006,0.86,133.96,133.91,4.58]
[1763400897214,0.86,133.96,133.92,13.37798214]
[1763400897422,0.86,133.96,133.91,4.58]
[1763400897423,0.66,133.95,133.91,17.95798214]
[1763400897916,0.66,133.95,133.91,13.37798214]
[1763400899089,0.66,133.95,133.9,13.37798214]
[1763400899797,0.66,133.95,133.89,0.72]
[1763400899998,0.2,133.96,133.91,13.37798214]
[1763400900197,0.2,133.96,133.89,1.46688176]
[1763400900396,0.86,133.96,133.89,0.72]
[1763400900620,0.86,133.96,133.91,13.37798214]
[1763400900952,0.66,133.95,133.84,0.72]
[1763400901224,13.37798214,133.93,133.87,13.37798214]
[1763400901689,13.37798214,133.93,133.88,14.09798214]
[1763400901690,0.66,133.93,133.88,14.09798214]
[1763400901893,0.86,133.96,133.91,13.37798214]
[1763400902123,0.2,133.96,133.93,13.37798214]
[1763400902336,0.2,133.96,133.95,13.37798214]
[1763400903006,0.86,133.96,133.89,0.72]
[1763400903324,0.66,133.95,133.91,13.37798214]
[1763400903932,0.66,133.95,133.9,13.37798214]
[1763400904522,0.2,133.96,133.92,13.37798214]
[1763400904836,0.2,133.96,133.94,13.37798214]
[1763400905047,0.2,133.96,133.95,13.37798214]
[1763400905443,0.2,133.96,133.92,0.72]
[1763400905633,0.86,133.96,133.9,0.72]
[1763400905952,13.37798214,133.92,133.84,0.72]
[1763400906123,13.37798214,133.9,133.85,13.37798214]
[1763400906441,13.37798214,133.93,133.88,13.37798214]
[1763400906638,0.66,133.92,133.88,13.37798214]
[1763400907838,13.37798214,133.93,133.88,14.09798214]
[1763400908047,0.66,133.93,133.88,0.72]
[1763400908222,13.37798214,133.94,133.86,4.58]
[1763400908424,18.32096,133.96,133.86,4.58]
[1763400908425,0.66,133.92,133.86,5.3]
[1763400908628,0.66,133.92,133.88,13.37798214]
[1763400909148,0.66,133.94,133.89,13.37798214]
[1763400909463,18.32096,133.96,133.93,13.37798214]
[1763400909464,0.2,133.96,133.93,13.37798214]
[1763400910256,0.86,133.96,133.92,13.37798214]
[1763400910558,0.66,133.95,133.9,13.37798214]
[1763400910746,14.03798214,133.95,133.89,13.37798214]
[1763400910927,0.66,133.95,133.9,13.37798214]
[1763400911256,0.66,133.95,133.91,13.37798214]
[1763400911426,0.2,133.96,133.91,13.37798214]
[1763400911628,0.9,133.96,133.92,13.37798214]
[1763400911852,0.2,133.96,133.93,13.37798214]
[1763400912235,0.2,133.96,133.95,13.37798214]
[1763400912756,0.2,133.96,133.94,13.37798214]
[1763400913141,0.7,133.95,133.93,13.37798214]
[1763400913560,0.7,133.95,133.92,13.37798214]
[1763400914047,0.2,133.96,133.92,13.37798214]
[1763400914249,0.9,133.96,133.92,13.37798214]
[1763400914646,0.9,133.96,133.9,4.58]
[1763400914647,0.2,133.96,133.94,13.37798214]
[1763400914958,0.2,133.96,133.95,13.37798214]
[1763400916249,0.2,133.96,133.93,0.7]
[1763400916450,0.2,133.96,133.95,13.37798214]
[1763400916859,0.2,133.96,133.95,14.07798214]
[1763400917368,0.2,134.07,133.95,23.86680983]
[1763400917663,0.67,134.05,134.02,13.37798214]
[1763400917837,0.67,134.05,133.99,4.56]
[1763400918042,0.67,134.05,134.02,13.37798214]
[1763400918471,0.2,134.07,133.99,4.56]
[1763400918650,0.87,134.07,133.98,18.12096]
[1763400918857,0.87,134.07,134.01,13.37798214]
[1763400919060,0.67,134.06,134.02,13.37798214]
[1763400919366,0.67,134.06,134.03,13.37798214]
[1763400920476,14.04798214,134.06,134.01,13.37798214]
[1763400920852,0.67,134.05,134.0,13.37798214]
[1763400921587,18.79096,134.05,133.99,13.37798214]
[1763400921747,18.79096,134.05,133.88,21.93101201]
[1763400921748,13.37798214,134.01,133.96,13.37798214]
[1763400922079,13.37798214,134.01,133.93,4.56]
[1763400922080,23.35096,134.04,133.98,13.37798214]
[1763400922251,5.23,134.04,134.0,13.37798214]
[1763400922579,0.67,134.04,134.01,13.37798214]
[1763400922981,0.67,134.04,134.02,13.37798214]
[1763400923356,0.67,134.06,134.02,13.37798214]
[1763400923678,0.67,134.06,134.03,13.37798214]
[1763400924175,0.67,134.06,134.02,13.37798214]
[1763400924379,0.67,134.06,134.03,13.37798214]
[1763400924758,0.2,134.07,134.03,13.37798214]
[1763400924968,0.87,134.07,134.03,13.37798214]
[1763400925167,0.87,134.07,134.04,13.37798214]
[1763400925369,0.2,134.07,134.06,13.37798214]
[1763400925953,0.2,134.07,134.06,18.58798214]
[1763400926154,0.2,134.07,134.06,17.93798214]
[1763400926383,0.2,134.07,134.05,4.56]
[1763400926552,0.2,134.07,134.05,17.93798214]
[1763400926753,0.2,134.07,134.06,14.02798214]
[1763400926980,0.2,134.07,134.06,13.37798214]
[1763400927395,0.2,134.07,134.06,14.02798214]
[1763400927985,0.2,134.07,134.06,13.37798214]
[1763400928381,0.2,134.07,134.06,14.02798214]
[1763400928701,0.2,134.07,134.06,13.37798214]
[1763400928874,0.2,134.07,134.06,14.02798214]
[1763400929477,0.2,134.07,134.06,13.37798214]
[1763400929885,0.2,134.07,134.06,14.02798214]
[1763400930675,0.2,134.07,134.06,18.58798214]
[1763400931678,0.2,134.1,134.06,46.49776983]
[1763400931883,0.2,134.1,134.09,13.37798214]
[1763400932198,0.2,134.13,134.09,14.02798214]
[1763400932402,0.2,134.13,134.12,13.37798214]
[1763400934005,0.2,134.13,134.12,13.96798214]
[1763400934306,0.2,134.13,134.12,32.08894214]
[1763400934708,0.2,134.13,134.12,32.83454309]
[1763400934915,0.2,134.13,134.12,32.08894214]
[1763400935085,0.2,134.13,134.12,13.37798214]
[1763400935410,0.2,134.13,134.11,13.37798214]
[1763400935411,0.87,134.13,134.11,13.37798214]
[1763400935710,0.87,134.13,134.1,13.37798214]
[1763400935899,0.67,134.12,134.09,13.37798214]
[1763400936498,0.67,134.12,134.02,0.59]
[1763400936807,0.67,134.12,134.07,13.37798214]
[1763400937198,0.67,134.12,134.1,13.37798214]
[1763400937411,0.67,134.12,134.05,18.12096]
[1763400937709,0.67,134.12,134.08,13.37798214]
[1763400937909,0.67,134.12,134.07,13.37798214]
[1763400938094,0.67,134.12,134.08,13.37798214]
[1763400938296,0.67,134.12,134.09,13.37798214]
[1763400939213,0.67,134.12,134.06,0.59]
[1763400939379,0.67,134.12,134.02,9.78882769]
[1763400939380,14.04798214,134.12,134.02,9.78882769]
[1763400939583,14.04798214,134.12,134.07,13.37798214]
[1763400939783,0.67,134.11,134.07,13.37798214]
[1763400940384,0.67,134.11,134.04,0.59]
[1763400940881,0.67,134.11,134.07,8.506632]
[1763400941108,0.67,134.11,134.08,8.506632]
[1763400941288,0.67,134.11,134.07,8.506632]
[1763400941811,0.67,134.11,134.08,8.506632]
[1763400941999,0.2,134.13,134.05,18.71096]
[1763400942307,0.2,134.13,134.1,8.506632]
[1763400942308,0.89,134.13,134.1,8.506632]
[1763400942499,0.89,134.13,134.11,8.506632]
[1763400942701,0.89,134.13,134.06,5.15]
[1763400942702,0.2,134.13,134.12,8.506632]
[1763400943296,0.2,134.13,134.12,9.096632]
[1763400943492,0.2,134.13,134.12,8.506632]
[1763400945694,0.89,134.13,134.12,8.506632]
[1763400946087,0.2,134.13,134.12,8.506632]
[1763400947025,0.2,134.13,134.11,8.506632]
[1763400947026,0.89,134.13,134.11,8.506632]
[1763400947195,0.89,134.13,134.06,29.24572234]
[1763400947399,0.69,134.12,134.1,8.506632]
[1763400947604,0.69,134.12,134.09,8.506632]
[1763400947804,0.69,134.12,134.03,11.1249293]
[1763400947805,0.69,134.12,134.03,0.59]
[1763400948007,0.69,134.12,134.07,8.506632]
[1763400948601,0.69,134.12,134.08,8.506632]
[1763400950024,0.69,134.12,134.07,8.506632]
[1763400950629,0.69,134.12,134.08,8.506632]
[1763400950996,0.69,134.12,134.07,8.506632]
[1763400951595,0.69,134.12,134.08,8.506632]
[1763400952105,8.506632,134.09,133.98,0.59]
[1763400952309,9.78882769,134.11,134.01,8.506632]
[1763400952310,8.506632,134.07,134.01,8.506632]
[1763400952514,8.506632,134.07,133.98,18.71096]
[1763400952816,0.69,134.06,134.03,8.506632]
[1763400953117,0.2,134.13,134.05,8.506632]
[1763400953118,0.69,134.1,134.05,8.506632]
[1763400953320,0.69,134.1,134.04,4.56]
[1763400953321,0.69,134.1,134.08,8.506632]
[1763400954107,0.69,134.1,134.09,8.506632]
[1763400955207,0.69,134.1,134.04,18.71096]
[1763400955414,0.69,134.1,133.99,0.59]
[1763400955710,9.196632,134.1,134.05,8.506632]
[1763400955888,9.196632,134.1,134.04,8.506632]
[1763400956091,0.69,134.09,134.04,8.506632]
[1763400956305,0.69,134.09,134.05,8.506632]
[1763400956594,0.69,134.09,134.04,8.506632]
[1763400956902,9.196632,134.09,134.04,8.506632]
[1763400957317,0.69,134.08,134.04,8.506632]
[1763400957921,9.196632,134.08,134.03,8.506632]
[1763400958124,0.69,134.08,134.03,8.506632]
[1763400958332,0.69,134.07,134.05,8.506632]
[1763400958724,0.69,134.07,134.06,8.506632]
[1763400960811,0.69,134.07,134.05,8.506632]
[1763400961512,0.69,134.07,134.06,8.506632]
[1763400961818,9.196632,134.07,134.02,8.506632]
[1763400962024,0.69,134.07,134.03,8.506632]
[1763400962227,0.69,134.06,134.03,8.506632]
[1763400962405,0.69,134.06,134.02,8.506632]
[1763400962607,0.69,134.06,134.03,8.506632]
[1763400962825,0.69,134.06,133.98,8.506632]
[1763400962826,8.506632,134.04,133.98,8.506632]
[1763400963025,8.506632,133.99,133.95,18.71096]
[1763400963229,8.506632,133.97,133.95,17.99096]
[1763400963433,8.506632,133.96,133.95,17.27096]
[1763400963636,8.506632,133.96,133.85,0.69]
[1763400963839,8.506632,133.93,133.88,8.506632]
[1763400964339,0.69,133.93,133.88,8.506632]
[1763400964640,0.69,133.93,133.9,8.506632]
[1763400964942,0.69,133.95,133.9,8.506632]
[1763400965545,8.506632,133.94,133.89,8.506632]
[1763400965918,0.69,133.94,133.91,8.506632]
[1763400966120,0.69,133.94,133.9,8.506632]
[1763400966315,0.69,133.94,133.84,0.74716078]
[1763400966526,0.69,133.94,133.76,51.966528]
[1763400966527,8.506632,133.91,133.86,8.506632]
[1763400966821,0.69,133.9,133.85,8.506632]
[1763400967030,9.196632,133.9,133.85,8.506632]
[1763400967540,0.69,133.89,133.85,8.506632]
[1763400968527,0.69,133.89,133.76,34.953264]
[1763400968721,8.506632,133.86,133.81,8.506632]
[1763400969027,8.506632,133.88,133.83,8.506632]
[1763400969225,8.506632,133.88,133.82,8.606632]
[1763400969226,9.196632,133.88,133.82,8.606632]
[1763400969735,27.317592,133.9,133.84,8.506632]
[1763400969939,0.69,133.89,133.84,8.506632]
[1763400970141,9.196632,133.89,133.83,8.506632]
[1763400970331,8.506632,133.88,133.83,8.506632]
[1763400970530,9.196632,133.88,133.82,8.606632]
[1763400970856,0.69,133.87,133.82,8.606632]
[1763400971023,0.69,133.87,133.83,8.506632]
[1763400971225,8.506632,133.89,133.83,9.196632]
[1763400971429,0.69,133.89,133.84,8.506632]
[1763400971624,0.69,133.89,133.83,0.69]
[1763400971821,0.69,133.89,133.84,8.506632]
[1763400972365,8.506632,133.87,133.82,0.1]
[1763400972570,8.506632,133.86,133.82,0.1]
[1763400972862,0.66,133.88,133.82,0.79]
[1763400973079,0.66,133.88,133.84,8.506632]
[1763400973358,0.66,133.9,133.85,8.506632]
[1763400973929,0.66,133.9,133.82,0.1]
[1763400974154,0.66,133.9,133.84,8.506632]
[1763400974357,8.506632,133.88,133.82,18.22096]
[1763400974656,8.506632,133.88,133.82,8.606632]
[1763400974884,8.506632,133.85,133.82,0.1]
[1763400975377,0.66,133.84,133.82,0.1]
[1763400975963,9.166632,133.86,133.82,0.1]
[1763400976140,9.166632,133.85,133.82,0.1]
[1763400976342,0.66,133.85,133.82,0.1]
[1763400976550,5.22,133.87,133.82,0.1]
[1763400976878,4.56,133.87,133.82,0.79]
[1763400977046,9.166632,133.9,133.84,8.506632]
[1763400977249,9.166632,133.9,133.85,8.506632]
[1763400977451,0.67,133.89,133.84,8.506632]
[1763400977658,9.176632,133.89,133.84,8.506632]
[1763400978045,0.67,133.91,133.85,9.216632]
[1763400978268,8.506632,133.92,133.87,8.506632]
[1763400978472,8.506632,133.94,133.86,0.71]
[1763400978671,4.56,133.96,133.92,8.506632]
[1763400978672,0.67,133.96,133.92,8.506632]
[1763400978989,8.506632,133.96,133.87,18.12096]
[1763400979146,9.176632,133.95,133.9,8.506632]
[1763400979342,9.176632,133.95,133.89,8.506632]
[1763400979538,0.67,133.94,133.89,8.506632]
[1763400980275,0.67,133.94,133.87,18.83096]
[1763400980447,0.67,133.94,133.89,8.506632]
[1763400980850,0.67,133.94,133.89,9.216632]
[1763400981051,0.67,133.94,133.88,8.506632]
[1763400981052,8.506632,133.93,133.88,8.506632]
[1763400981377,0.67,133.94,133.9,8.506632]
[1763400981553,0.67,133.94,133.89,8.506632]
[1763400982279,9.176632,133.94,133.89,8.506632]
[1763400982475,8.506632,133.91,133.82,0.1]
[1763400982646,8.506632,133.91,133.85,8.506632]
[1763400982986,0.67,133.91,133.86,8.506632]
[1763400983146,4.56,133.93,133.83,0.71]
[1763400983147,13.736632,133.93,133.83,0.71]
[1763400983353,0.67,133.92,133.86,8.506632]
[1763400983601,9.176632,133.92,133.86,8.506632]
[1763400983754,102.7,133.91,133.86,9.216632]
[1763400983957,102.7,133.91,133.86,0.71]
[1763400984171,102.7,133.91,133.86,9.216632]
[1763400984567,102.7,133.9,133.86,9.216632]
[1763400984882,103.37,133.9,133.85,8.506632]
[1763400985063,102.7,133.89,133.86,8.506632]
[1763400985249,102.7,133.88,133.85,8.506632]
[1763400985993,103.37,133.87,133.83,8.506632]
[1763400986281,103.37,133.87,133.82,0.1]
[1763400986282,103.37,133.87,133.82,8.606632]
[1763400986484,102.7,133.86,133.82,8.606632]
[1763400986647,102.7,133.86,133.82,0.1]
[1763400987423,0.67,133.85,133.82,0.1]
[1763400987895,102.7,133.86,133.84,8.506632]
[1763400988097,102.7,133.86,133.85,8.506632]
[1763400988285,102.7,133.86,133.82,0.81]
[1763400988462,102.7,133.86,133.84,8.506632]
[1763400988865,0.67,133.85,133.82,0.1]
[1763400989081,102.7,133.86,133.82,9.316632]
[1763400989288,102.7,133.86,133.83,8.506632]
[1763400989491,102.7,133.86,133.82,8.606632]
[1763400989798,103.37,133.86,133.82,8.606632]
[1763400989998,103.37,133.86,133.82,0.1]
[1763400990200,102.7,133.86,133.82,9.316632]
[1763400990406,103.37,133.86,133.82,8.606632]
[1763400990587,103.37,133.86,133.82,0.1]
[1763400990588,0.67,133.85,133.82,0.1]
[1763400990791,102.7,133.86,133.82,8.606632]
[1763400990991,0.67,133.85,133.82,8.606632]
[1763400991185,0.67,133.85,133.82,0.1]
[1763400991889,18.29545969,133.83,133.82,0.1]
[1763400992091,9.78882769,133.83,133.82,0.1]
[1763400992295,18.96545969,133.83,133.82,0.1]
[1763400992703,10.45882769,133.83,133.82,0.1]
[1763400993490,18.96545969,133.83,133.82,0.1]
[1763400994092,10.45882769,133.83,133.82,0.1]
[1763400994289,18.96545969,133.83,133.82,0.1]
[1763400994500,9.27084365,133.9,133.82,0.81]
[1763400994804,9.176632,133.88,133.82,9.316632]
[1763400995195,8.506632,133.92,133.87,8.506632]
[1763400995196,0.67,133.92,133.87,8.506632]
[1763400995391,13.736632,133.92,133.86,8.506632]
[1763400995705,4.56,133.92,133.88,8.506632]
[1763400996081,4.56,133.92,133.89,9.216632]
[1763400996415,4.56,133.92,133.85,0.71]
[1763400997400,10.45882769,133.91,133.86,9.216632]
[1763400998183,9.78882769,133.91,133.87,9.216632]
[1763400998392,9.78882769,133.91,133.87,8.506632]
[1763400998592,10.45882769,133.91,133.87,8.506632]
[1763400998804,0.67,133.91,133.87,8.506632]
[1763400999007,4.56,133.92,133.87,8.506632]
[1763400999215,5.23,133.92,133.88,8.506632]
[1763400999390,4.56,133.92,133.89,8.506632]
[1763400999706,14.34882769,133.95,133.91,8.506632]
[1763401000081,4.56,133.95,133.92,8.506632]
[1763401000283,4.56,133.95,133.93,8.506632]
[1763401001178,4.56,133.97,133.94,8.506632]
[1763401001608,5.25,133.97,133.94,8.506632]
[1763401002108,4.56,133.97,133.91,0.71]
[1763401002312,4.56,133.97,133.94,8.506632]
[1763401002904,5.25,133.97,133.94,13.35654786]
[1763401003600,4.56,133.97,133.94,13.35654786]
[1763401004999,4.56,133.97,133.93,13.35654786]
[1763401005199,4.56,133.97,133.94,13.35654786]
[1763401006396,4.56,133.97,133.84,4.56]
[1763401006397,13.35654786,133.95,133.83,13.35654786]
[1763401006596,9.78882769,133.94,133.9,13.35654786]
[1763401006795,4.54,133.93,133.9,13.35654786]
[1763401007005,5.23,133.93,133.88,13.35654786]
[1763401007517,28.59978769,133.92,133.86,13.35654786]
[1763401007812,13.35654786,133.88,133.82,14.12654786]
[1763401007990,4.54,133.87,133.84,13.35654786]
[1763401008192,4.54,133.87,133.83,13.35654786]
[1763401008415,4.54,133.87,133.83,14.02654786]
[1763401008718,4.54,133.87,133.84,0.67]
[1763401009210,4.54,133.87,133.85,13.35654786]
[1763401009410,17.89654786,133.9,133.86,0.67]
[1763401009610,17.89654786,133.9,133.84,13.35654786]
[1763401009611,0.69,133.89,133.84,13.35654786]
[1763401009806,17.89654786,133.9,133.84,13.35654786]
[1763401009995,17.89654786,133.9,133.84,14.02654786]
[1763401010314,4.54,133.9,133.84,14.02654786]
[1763401010486,13.35654786,133.89,133.84,0.67]
[1763401010689,13.35654786,133.89,133.83,13.35654786]
[1763401010690,14.04654786,133.89,133.83,13.35654786]
[1763401010905,23.14537555,133.88,133.83,14.02654786]
[1763401011122,23.14537555,133.86,133.82,0.1]
[1763401011416,17.89654786,133.85,133.82,0.1]
[1763401011619,4.54,133.85,133.82,0.1]
[1763401011798,18.58654786,133.85,133.82,0.1]
[1763401012002,4.54,133.85,133.82,0.1]
[1763401012305,5.23,133.85,133.82,0.1]
[1763401012512,18.58654786,133.85,133.82,0.1]
[1763401012724,102.7,133.84,133.82,0.1]
[1763401012926,5.23,133.85,133.82,0.1]
[1763401012927,102.7,133.83,133.82,0.1]
[1763401013419,102.7,133.83,133.82,0.77]
[1763401013636,102.7,133.83,133.82,0.1]
[1763401014913,4.54,133.85,133.82,0.1]
[1763401015112,4.54,133.85,133.82,14.12654786]
[1763401015421,4.54,133.85,133.82,0.1]
[1763401015625,4.54,133.85,133.82,14.12654786]
[1763401016026,4.54,133.85,133.83,14.02654786]
[1763401016834,4.54,133.85,133.83,0.67]
[1763401017128,4.54,133.85,133.82,13.45654786]
[1763401017326,4.54,133.85,133.83,0.67]
[1763401017532,5.23,133.85,133.82,0.1]
[1763401017737,4.54,133.85,133.82,0.1]
[1763401019146,10.47882769,133.88,133.83,13.35654786]
[1763401019333,10.47882769,133.88,133.82,0.1]
[1763401019334,9.78882769,133.86,133.82,0.1]
[1763401019508,10.47882769,133.86,133.82,0.1]
[1763401019709,4.54,133.85,133.82,13.45654786]
[1763401020236,102.7,133.84,133.82,14.12654786]
[1763401020414,102.7,133.84,133.82,13.45654786]
[1763401020618,102.7,133.84,133.83,0.67]
[1763401020825,102.7,133.84,133.83,14.02654786]
[1763401021037,102.7,133.88,133.83,14.02654786]
[1763401021339,9.78882769,133.83,133.82,0.1]
[1763401021516,14.32882769,133.83,133.82,0.1]
[1763401021710,15.01882769,133.83,133.82,0.1]
[1763401021912,28.37537555,133.83,133.82,0.1]
[1763401023026,14.32882769,133.83,133.82,0.1]
[1763401024122,32.16750786,133.86,133.82,0.1]
[1763401024311,5.23,133.86,133.82,0.77]
[1763401024512,4.54,133.86,133.82,0.77]
[1763401024841,9.27084365,133.91,133.82,14.12654786]
[1763401024842,0.69,133.89,133.82,14.12654786]
[1763401025043,13.35654786,133.9,133.83,14.02654786]
[1763401025219,9.78882769,133.9,133.84,13.35654786]
[1763401025422,17.89654786,133.91,133.85,13.35654786]
[1763401025423,4.54,133.91,133.85,13.35654786]
[1763401025623,4.54,133.91,133.85,14.02654786]
[1763401025823,4.54,133.91,133.86,0.67]
[1763401025824,17.89654786,133.9,133.86,0.67]
[1763401026039,9.78882769,133.85,133.82,0.1]
[1763401026231,13.35654786,133.84,133.82,0.1]
[1763401026525,23.14537555,133.83,133.82,0.1]
[1763401027218,23.83537555,133.83,133.82,0.1]
[1763401028655,109.64192341,133.83,133.82,0.1]
[1763401028957,109.64192341,133.83,133.7,0.67]
[1763401028958,18.12096,133.78,133.7,0.67]
[1763401029124,9.78882769,133.75,133.69,14.02654786]
[1763401029320,4.54,133.77,133.71,13.35654786]
[1763401029540,14.32882769,133.77,133.71,13.35654786]
[1763401029733,14.32882769,133.77,133.72,0.67]
[1763401029939,23.14537555,133.76,133.7,0.67]
[1763401030141,9.78882769,133.74,133.7,0.67]
[1763401030453,4.54,133.73,133.7,0.67]
[1763401030653,4.54,133.73,133.68,14.12654786]
[1763401030820,4.54,133.73,133.69,0.67]
[1763401031151,9.78882769,133.75,133.7,13.35654786]
[1763401031350,9.78882769,133.75,133.71,0.67]
[1763401031653,4.54,133.76,133.71,0.67]
[1763401031834,4.54,133.76,133.71,14.02654786]
[1763401032333,4.54,133.76,133.72,0.69]
[1763401032748,9.80469752,133.81,133.72,0.69]
[1763401032749,4.54,133.79,133.73,13.35654786]
[1763401032946,9.78882769,133.78,133.72,14.04654786]
[1763401033261,23.81537555,133.78,133.72,0.69]
[1763401033969,9.78882769,133.76,133.72,0.69]
[1763401034141,4.54,133.75,133.72,0.69]
[1763401037250,4.56,133.78,133.72,14.04654786]
[1763401037474,4.56,133.78,133.73,13.35654786]
[1763401037659,4.56,133.78,133.73,14.07654786]
[1763401037859,4.56,133.78,133.74,0.72]
[1763401038788,13.35654786,133.8,133.74,0.72]
[1763401038952,17.89654786,133.8,133.74,14.07654786]
[1763401039152,17.89654786,133.8,133.75,0.72]
[1763401040302,3.91161715,133.81,133.75,14.07654786]
[1763401040486,17.26816501,133.81,133.75,0.72]
[1763401040673,17.26816501,133.81,133.76,0.72]
[1763401040870,3.91161715,133.81,133.76,0.72]
[1763401041592,3.91161715,133.81,133.76,14.07654786]
[1763401041793,3.91161715,133.81,133.77,13.35654786]
[1763401041972,4.54,133.82,133.78,14.07654786]
[1763401042399,4.54,133.82,133.76,14.07654786]
[1763401042567,4.54,133.82,133.76,0.72]
[1763401042568,13.35654786,133.8,133.76,0.72]
[1763401043272,32.19750786,133.8,133.75,13.35654786]
[1763401043492,14.07654786,133.79,133.74,0.72]
[1763401043676,4.54,133.78,133.74,0.72]
[1763401044189,13.35654786,133.83,133.77,13.35654786]
[1763401044391,4.54,133.82,133.74,0.72]
[1763401044593,5.26,133.82,133.77,13.35654786]
[1763401044783,9.78882769,133.81,133.76,13.35654786]
[1763401045405,0.72,133.8,133.76,13.35654786]
[1763401045589,102.7,133.79,133.76,13.35654786]
[1763401045774,102.7,133.79,133.76,14.07654786]
[1763401046098,107.24,133.78,133.74,14.07654786]
[1763401046682,102.7,133.77,133.73,13.35654786]
[1763401046997,102.7,133.77,133.74,14.07654786]
[1763401047201,102.7,133.77,133.75,13.35654786]
[1763401047871,102.7,133.77,133.75,14.07654786]
[1763401048073,102.7,133.77,133.76,14.07654786]
[1763401048384,102.7,133.82,133.76,0.72]
[1763401048586,103.42,133.81,133.76,14.07654786]
[1763401048778,103.42,133.81,133.77,13.35654786]
[1763401048974,102.7,133.81,133.77,0.72]
[1763401049196,102.7,133.81,133.78,14.07654786]
[1763401049905,102.7,133.81,133.79,0.72]
[1763401050696,102.7,133.81,133.78,13.35654786]
[1763401050889,102.7,133.81,133.77,13.35654786]
[1763401051094,4.54,133.8,133.76,13.35654786]
[1763401051298,4.54,133.8,133.76,14.07654786]
[1763401051598,5.26,133.8,133.76,13.35654786]
[1763401051807,102.7,133.79,133.76,13.35654786]
[1763401052002,102.7,133.79,133.76,14.07654786]
[1763401052212,102.7,133.78,133.75,13.35654786]
[1763401052493,102.7,133.78,133.74,13.35654786]
[1763401052701,102.7,133.78,133.76,13.35654786]